[Event "Titled Tuesday Blitz August 22 Early 2023"]
[White "Zemlyanskii, Ivan"]
[Black "Boarish_Male"]
[WhiteFideId "24249971"]
[WhiteElo "2836"]
[BlackElo "2610"]
[Result "1-0"]
[Round "6"]
[TimeControl "180+1"]
[Date "2023.08.22"]
[WhiteClock "0:00:07"]
[BlackClock "0:00:02"]
[Board "46"]

1. d4 {[%clk 0:02:54]}  d5 {[%clk 0:02:59]} 2. Bf4 {[%clk 0:02:54]}  Nf6 {[%clk 0:02:58]} 3. e3 {[%clk 0:02:54]}  e6 {[%clk 0:02:58]} 4. Nf3 {[%clk 0:02:54]}  Bd6 {[%clk 0:02:59]} 5. Bg3 {[%clk 0:02:54]}  O-O {[%clk 0:02:58]} 6. Nbd2 {[%clk 0:02:52]}  b6 {[%clk 0:02:57]} 7. Ne5 {[%clk 0:02:42]}  Bb7 {[%clk 0:02:56]} 8. Bd3 {[%clk 0:02:41]}  c5 {[%clk 0:02:55]} 9. c3 {[%clk 0:02:33]}  Nc6 {[%clk 0:02:55]} 10. O-O {[%clk 0:02:30]}  Ne7 {[%clk 0:02:51]} 11. Bh4 {[%clk 0:02:22]}  Nf5 {[%clk 0:02:48]} 12. Bxf5 {[%clk 0:02:01]}  exf5 {[%clk 0:02:48]} 13. Qf3 {[%clk 0:01:59]}  g6 {[%clk 0:02:31]} 14. Bxf6 {[%clk 0:01:58]}  Qxf6 {[%clk 0:02:31]} 15. Nd7 {[%clk 0:01:58]}  Bxh2+ {[%clk 0:02:32]} 16. Kxh2 {[%clk 0:01:26]}  Qd6+ {[%clk 0:02:31]} 17. Ne5 {[%clk 0:01:25]}  f6 {[%clk 0:02:32]} 18. Qg3 {[%clk 0:01:23]}  fxe5 {[%clk 0:02:29]} 19. dxe5 {[%clk 0:01:24]}  Qe6 {[%clk 0:02:28]} 20. f4 {[%clk 0:01:24]}  Rad8 {[%clk 0:02:17]} 21. Nf3 {[%clk 0:01:25]}  h6 {[%clk 0:02:09]} 22. Qh4 {[%clk 0:01:22]}  Kg7 {[%clk 0:02:00]} 23. Kg3 {[%clk 0:01:22]}  d4 {[%clk 0:01:52]} 24. cxd4 {[%clk 0:01:10]}  Bxf3 {[%clk 0:01:47]} 25. Rxf3 {[%clk 0:01:05]}  cxd4 {[%clk 0:01:47]} 26. Rd1 {[%clk 0:00:54]}  d3 {[%clk 0:01:41]} 27. Rf2 {[%clk 0:00:50]}  Rd7 {[%clk 0:01:32]} 28. Rfd2 {[%clk 0:00:44]}  Rfd8 {[%clk 0:01:25]} 29. b3 {[%clk 0:00:44]}  b5 {[%clk 0:01:17]} 30. Kf2 {[%clk 0:00:43]}  b4 {[%clk 0:01:14]} 31. Qg3 {[%clk 0:00:40]}  Rd5 {[%clk 0:01:04]} 32. Qf3 {[%clk 0:00:37]}  Qb6 {[%clk 0:00:56]} 33. g3 {[%clk 0:00:34]}  a5 {[%clk 0:00:54]} 34. Kg2 {[%clk 0:00:33]}  Qb5 {[%clk 0:00:30]} 35. e4 {[%clk 0:00:27]}  fxe4 {[%clk 0:00:27]} 36. Qxe4 {[%clk 0:00:28]}  Rd4 {[%clk 0:00:28]} 37. Qf3 {[%clk 0:00:29]}  Qd7 {[%clk 0:00:24]} 38. Re1 {[%clk 0:00:27]}  Qd5 {[%clk 0:00:18]} 39. Qxd5 {[%clk 0:00:23]}  R8xd5 {[%clk 0:00:19]} 40. Kf3 {[%clk 0:00:23]}  Kf7 {[%clk 0:00:17]} 41. Ke3 {[%clk 0:00:22]}  Ke6 {[%clk 0:00:15]} 42. Red1 {[%clk 0:00:22]}  Rd8 {[%clk 0:00:10]} 43. Rxd3 {[%clk 0:00:22]}  Rxd3+ {[%clk 0:00:10]} 44. Rxd3 {[%clk 0:00:23]}  Rc8 {[%clk 0:00:11]} 45. Rd6+ {[%clk 0:00:23]}  Kf7 {[%clk 0:00:11]} 46. Ra6 {[%clk 0:00:14]}  Rc3+ {[%clk 0:00:11]} 47. Ke4 {[%clk 0:00:14]}  Rxg3 {[%clk 0:00:09]} 48. Rxa5 {[%clk 0:00:15]}  h5 {[%clk 0:00:09]} 49. Ra7+ {[%clk 0:00:14]}  Ke6 {[%clk 0:00:07]} 50. Rb7 {[%clk 0:00:13]}  h4 {[%clk 0:00:06]} 51. Rxb4 {[%clk 0:00:09]}  h3 {[%clk 0:00:05]} 52. Rb8 {[%clk 0:00:08]}  Rg2 {[%clk 0:00:04]} 53. Rh8 {[%clk 0:00:08]}  h2 {[%clk 0:00:02]} 54. a4 {[%clk 0:00:08]}  Rb2 {[%clk 0:00:02]} 55. a5 {[%clk 0:00:07]}  Re2+ {[%clk 0:00:02]} 56. Kf3 {[%clk 0:00:07]}  Rb2 {[%clk 0:00:02]} 57. Kg4 {[%clk 0:00:06]}  Rg2+ {[%clk 0:00:02]} 58. Kf3 {[%clk 0:00:06]}  Rb2 {[%clk 0:00:02]} 59. a6 {[%clk 0:00:05]}  Rxb3+ {[%clk 0:00:03]} 60. Kg4 {[%clk 0:00:05]}  Ra3 {[%clk 0:00:03]} 61. Rxh2 {[%clk 0:00:05]}  Rxa6 {[%clk 0:00:03]} 62. Rh6 {[%clk 0:00:04]}  Kf7 {[%clk 0:00:03]} 63. Rh7+ {[%clk 0:00:03]}  Kf8 {[%clk 0:00:02]} 64. Rd7 {[%clk 0:00:04]}  Rb6 {[%clk 0:00:02]} 65. Rd6 {[%clk 0:00:04]}  Rxd6 {[%clk 0:00:02]} 66. exd6 {[%clk 0:00:05]}  Kf7 {[%clk 0:00:02]} 67. Kg5 {[%clk 0:00:05]}  Ke6 {[%clk 0:00:02]} 68. Kxg6 {[%clk 0:00:06]}  Kxd6 {[%clk 0:00:03]} 69. f5 {[%clk 0:00:07]}  Ke7 {[%clk 0:00:02]} 70. Kg7 {[%clk 0:00:07]} 1-0


[Site "https://www.chess.com"]

[Event "Titled Tuesday Blitz August 22 Early 2023"]
[White "Arat, Ufuk Sezen"]
[Black "Putnam, Liam"]
[WhiteFideId "6309089"]
[BlackFideId "30938279"]
[WhiteElo "2619"]
[BlackElo "2818"]
[Result "0-1"]
[Round "6"]
[TimeControl "180+1"]
[Date "2023.08.22"]
[WhiteClock "0:00:08"]
[BlackClock "0:00:09"]
[Board "47"]

1. e4 {[%clk 0:03:00]}  e5 {[%clk 0:02:54]} 2. Nf3 {[%clk 0:03:01]}  Nc6 {[%clk 0:02:53]} 3. Bc4 {[%clk 0:03:01]}  Bc5 {[%clk 0:02:53]} 4. d4 {[%clk 0:03:01]}  Bxd4 {[%clk 0:02:52]} 5. Nxd4 {[%clk 0:03:01]}  Nxd4 {[%clk 0:02:51]} 6. Be3 {[%clk 0:03:02]}  Ne6 {[%clk 0:02:39]} 7. Bxe6 {[%clk 0:03:02]}  dxe6 {[%clk 0:02:34]} 8. Qh5 {[%clk 0:03:03]}  Qd6 {[%clk 0:02:29]} 9. Nd2 {[%clk 0:03:00]}  Nf6 {[%clk 0:02:28]} 10. Qf3 {[%clk 0:02:55]}  b6 {[%clk 0:02:22]} 11. O-O-O {[%clk 0:02:52]}  Bb7 {[%clk 0:02:14]} 12. Bg5 {[%clk 0:02:40]}  Qe7 {[%clk 0:02:00]} 13. Rhe1 {[%clk 0:02:21]}  h6 {[%clk 0:01:56]} 14. Bh4 {[%clk 0:02:21]}  O-O-O {[%clk 0:01:45]} 15. Bg3 {[%clk 0:02:14]}  Qc5 {[%clk 0:01:42]} 16. Bh4 {[%clk 0:02:04]}  Qe7 {[%clk 0:01:13]} 17. Bg3 {[%clk 0:01:48]}  Nd7 {[%clk 0:01:06]} 18. Qc3 {[%clk 0:01:49]}  f6 {[%clk 0:01:04]} 19. f4 {[%clk 0:01:45]}  exf4 {[%clk 0:01:04]} 20. Bxf4 {[%clk 0:01:45]}  e5 {[%clk 0:01:05]} 21. Be3 {[%clk 0:01:42]}  Nf8 {[%clk 0:01:00]} 22. Nc4 {[%clk 0:01:41]}  Ne6 {[%clk 0:00:59]} 23. Bf2 {[%clk 0:01:27]}  Rxd1+ {[%clk 0:00:57]} 24. Kxd1 {[%clk 0:01:25]}  Rd8+ {[%clk 0:00:55]} 25. Kc1 {[%clk 0:01:25]}  Nc5 {[%clk 0:00:54]} 26. Nd2 {[%clk 0:00:57]}  Ne6 {[%clk 0:00:39]} 27. a4 {[%clk 0:00:48]}  Kb8 {[%clk 0:00:34]} 28. a5 {[%clk 0:00:49]}  Qd7 {[%clk 0:00:32]} 29. b3 {[%clk 0:00:47]}  Nf4 {[%clk 0:00:28]} 30. g3 {[%clk 0:00:45]}  Ne6 {[%clk 0:00:28]} 31. Nc4 {[%clk 0:00:44]}  Nd4 {[%clk 0:00:27]} 32. axb6 {[%clk 0:00:42]}  axb6 {[%clk 0:00:26]} 33. Kb2 {[%clk 0:00:42]}  Qc6 {[%clk 0:00:22]} 34. Ra1 {[%clk 0:00:42]}  Qxe4 {[%clk 0:00:22]} 35. Rd1 {[%clk 0:00:36]}  Rd5 {[%clk 0:00:17]} 36. Rd2 {[%clk 0:00:34]}  Nb5 {[%clk 0:00:15]} 37. Qb4 {[%clk 0:00:31]}  Rxd2 {[%clk 0:00:15]} 38. Qxd2 {[%clk 0:00:32]}  Qd5 {[%clk 0:00:15]} 39. Qe2 {[%clk 0:00:29]}  Nd4 {[%clk 0:00:15]} 40. Qg4 {[%clk 0:00:27]}  g5 {[%clk 0:00:15]} 41. Qh5 {[%clk 0:00:25]}  Qe4 {[%clk 0:00:15]} 42. Na3 {[%clk 0:00:24]}  Qe2 {[%clk 0:00:14]} 43. Qe8+ {[%clk 0:00:22]}  Bc8 {[%clk 0:00:13]} 44. Bxd4 {[%clk 0:00:21]}  Qxh2 {[%clk 0:00:12]} 45. Bc3 {[%clk 0:00:15]}  Qxg3 {[%clk 0:00:09]} 46. Nc4 {[%clk 0:00:15]}  Qg2 {[%clk 0:00:08]} 47. Qf8 {[%clk 0:00:14]}  Qc6 {[%clk 0:00:05]} 48. Qxh6 {[%clk 0:00:14]}  Kb7 {[%clk 0:00:05]} 49. Qh2 {[%clk 0:00:11]}  Be6 {[%clk 0:00:05]} 50. Nd2 {[%clk 0:00:08]}  e4 {[%clk 0:00:06]} 51. Qe2 {[%clk 0:00:06]}  f5 {[%clk 0:00:06]} 52. Nf1 {[%clk 0:00:05]}  Bd5 {[%clk 0:00:07]} 53. Ne3 {[%clk 0:00:06]}  f4 {[%clk 0:00:08]} 54. Ng4 {[%clk 0:00:06]}  e3 {[%clk 0:00:08]} 55. Nxe3 {[%clk 0:00:06]}  fxe3 {[%clk 0:00:08]} 56. Qxe3 {[%clk 0:00:06]}  g4 {[%clk 0:00:08]} 57. Qg3 {[%clk 0:00:07]}  Bf3 {[%clk 0:00:09]} 58. Be5 {[%clk 0:00:08]}  Qc5 {[%clk 0:00:09]} 59. c3 {[%clk 0:00:07]}  b5 {[%clk 0:00:09]} 60. Bd4 {[%clk 0:00:07]}  Qc6 {[%clk 0:00:09]} 61. Qf4 {[%clk 0:00:07]}  Qd5 {[%clk 0:00:10]} 62. Qg3 {[%clk 0:00:07]}  b4 {[%clk 0:00:10]} 63. Qf4 {[%clk 0:00:07]}  bxc3+ {[%clk 0:00:09]} 64. Kxc3 {[%clk 0:00:08]}  Bd1 {[%clk 0:00:08]} 65. b4 {[%clk 0:00:07]}  Qb3+ {[%clk 0:00:08]} 66. Kd2 {[%clk 0:00:08]}  Qc2+ {[%clk 0:00:08]} 67. Ke3 {[%clk 0:00:08]}  Qe2# {[%clk 0:00:09]} 0-1


[Site "https://www.chess.com"]

[Event "Titled Tuesday Blitz August 22 Early 2023"]
[White "Badelka, Olga"]
[Black "Materia, Marco"]
[WhiteFideId "13509926"]
[BlackFideId "45150451"]
[WhiteElo "2555"]
[BlackElo "2787"]
[Result "0-1"]
[Round "6"]
[TimeControl "180+1"]
[Date "2023.08.22"]
[WhiteClock "0:00:00"]
[BlackClock "0:00:38"]
[Board "50"]

1. c4 {[%clk 0:03:00]}  e6 {[%clk 0:02:59]} 2. Nf3 {[%clk 0:02:59]}  d5 {[%clk 0:02:59]} 3. e3 {[%clk 0:02:59]}  Nf6 {[%clk 0:02:58]} 4. Nc3 {[%clk 0:02:58]}  a6 {[%clk 0:02:57]} 5. b3 {[%clk 0:02:56]}  Bd6 {[%clk 0:02:56]} 6. Bb2 {[%clk 0:02:56]}  O-O {[%clk 0:02:56]} 7. Be2 {[%clk 0:02:54]}  b6 {[%clk 0:02:47]} 8. Qc2 {[%clk 0:02:47]}  Bb7 {[%clk 0:02:43]} 9. Rg1 {[%clk 0:02:47]}  dxc4 {[%clk 0:02:31]} 10. bxc4 {[%clk 0:02:46]}  Nc6 {[%clk 0:02:30]} 11. d4 {[%clk 0:02:27]}  Nb4 {[%clk 0:02:23]} 12. Qb1 {[%clk 0:02:25]}  c5 {[%clk 0:02:23]} 13. a3 {[%clk 0:02:21]}  cxd4 {[%clk 0:02:22]} 14. exd4 {[%clk 0:01:53]}  Nc6 {[%clk 0:02:21]} 15. g4 {[%clk 0:01:52]}  e5 {[%clk 0:01:54]} 16. d5 {[%clk 0:01:43]}  Nd4 {[%clk 0:01:53]} 17. Ne4 {[%clk 0:01:29]}  Nxe2 {[%clk 0:01:43]} 18. Kxe2 {[%clk 0:01:30]}  Nxe4 {[%clk 0:01:43]} 19. Qxe4 {[%clk 0:01:29]}  b5 {[%clk 0:01:43]} 20. Rg3 {[%clk 0:00:36]}  Rc8 {[%clk 0:01:35]} 21. Rh3 {[%clk 0:00:35]}  f5 {[%clk 0:01:33]} 22. gxf5 {[%clk 0:00:34]}  Rxc4 {[%clk 0:01:33]} 23. Qb1 {[%clk 0:00:20]}  Bxd5 {[%clk 0:01:30]} 24. Nd2 {[%clk 0:00:20]}  Rf4 {[%clk 0:01:27]} 25. f6 {[%clk 0:00:19]}  g6 {[%clk 0:01:23]} 26. Qd3 {[%clk 0:00:17]}  Bb7 {[%clk 0:01:14]} 27. Qb3+ {[%clk 0:00:14]}  Kh8 {[%clk 0:01:14]} 28. f3 {[%clk 0:00:06]}  Qxf6 {[%clk 0:01:14]} 29. Rf1 {[%clk 0:00:06]}  Qf5 {[%clk 0:01:09]} 30. Rg3 {[%clk 0:00:06]}  Qf7 {[%clk 0:01:02]} 31. Qe3 {[%clk 0:00:06]}  Re8 {[%clk 0:01:00]} 32. Kd1 {[%clk 0:00:05]}  Kg8 {[%clk 0:00:57]} 33. Rg4 {[%clk 0:00:03]}  Rf5 {[%clk 0:00:55]} 34. h4 {[%clk 0:00:03]}  Qa2 {[%clk 0:00:54]} 35. Bc3 {[%clk 0:00:02]}  Rd8 {[%clk 0:00:50]} 36. Ke2 {[%clk 0:00:01]}  Qxa3 {[%clk 0:00:48]} 37. Rg5 {[%clk 0:00:01]}  Rxg5 {[%clk 0:00:46]} 38. hxg5 {[%clk 0:00:02]}  b4 {[%clk 0:00:46]} 39. Ba1 {[%clk 0:00:02]}  Qxe3+ {[%clk 0:00:46]} 40. Kxe3 {[%clk 0:00:03]}  a5 {[%clk 0:00:45]} 41. Ne4 {[%clk 0:00:03]}  Bxe4 {[%clk 0:00:44]} 42. Kxe4 {[%clk 0:00:04]}  a4 {[%clk 0:00:44]} 43. Rd1 {[%clk 0:00:04]}  Be7 {[%clk 0:00:40]} 44. Rc1 {[%clk 0:00:04]}  Bxg5 {[%clk 0:00:40]} 45. Rc7 {[%clk 0:00:04]}  Bf6 {[%clk 0:00:38]} 46. Ra7 {[%clk 0:00:03]}  a3 {[%clk 0:00:38]} 47. Rb7 {[%clk 0:00:00]}  Rd1 {[%clk 0:00:38]} 0-1


[Site "https://www.chess.com"]

[Event "Titled Tuesday Blitz August 22 Early 2023"]
[White "Starozhilov, Leonid"]
[Black "Gontcharov, Vladislav"]
[WhiteFideId "14106752"]
[BlackFideId "4123492"]
[WhiteElo "2766"]
[BlackElo "2552"]
[Result "0-1"]
[Round "6"]
[TimeControl "180+1"]
[Date "2023.08.22"]
[WhiteClock "0:00:00"]
[BlackClock "0:00:09"]
[Board "52"]

1. e4 {[%clk 0:03:00]}  e6 {[%clk 0:03:00]} 2. d4 {[%clk 0:03:00]}  d5 {[%clk 0:03:00]} 3. e5 {[%clk 0:03:00]}  c5 {[%clk 0:03:00]} 4. c3 {[%clk 0:03:01]}  Nc6 {[%clk 0:03:00]} 5. Nf3 {[%clk 0:03:01]}  cxd4 {[%clk 0:03:01]} 6. cxd4 {[%clk 0:03:02]}  Nge7 {[%clk 0:03:01]} 7. Bd3 {[%clk 0:03:01]}  Nf5 {[%clk 0:03:01]} 8. Bxf5 {[%clk 0:03:01]}  exf5 {[%clk 0:03:01]} 9. Nc3 {[%clk 0:03:02]}  Be6 {[%clk 0:03:01]} 10. h4 {[%clk 0:03:02]}  h6 {[%clk 0:03:00]} 11. a3 {[%clk 0:02:53]}  Be7 {[%clk 0:02:46]} 12. Be3 {[%clk 0:02:43]}  Qd7 {[%clk 0:02:42]} 13. b4 {[%clk 0:02:41]}  Rc8 {[%clk 0:02:39]} 14. Rc1 {[%clk 0:02:41]}  b6 {[%clk 0:02:17]} 15. Qd2 {[%clk 0:02:37]}  Kf8 {[%clk 0:02:04]} 16. g3 {[%clk 0:02:34]}  Kg8 {[%clk 0:02:04]} 17. Kf1 {[%clk 0:02:33]}  Kh7 {[%clk 0:02:03]} 18. Kg2 {[%clk 0:02:30]}  a6 {[%clk 0:01:22]} 19. Qe2 {[%clk 0:02:20]}  Qb7 {[%clk 0:01:18]} 20. Na4 {[%clk 0:01:48]}  Na7 {[%clk 0:01:15]} 21. Nb2 {[%clk 0:01:38]}  Rxc1 {[%clk 0:01:06]} 22. Rxc1 {[%clk 0:01:28]}  Rc8 {[%clk 0:01:05]} 23. Nd3 {[%clk 0:01:22]}  Rxc1 {[%clk 0:01:04]} 24. Bxc1 {[%clk 0:01:23]}  Qc8 {[%clk 0:01:01]} 25. Bd2 {[%clk 0:00:58]}  Nb5 {[%clk 0:01:00]} 26. a4 {[%clk 0:00:53]}  Na3 {[%clk 0:00:59]} 27. a5 {[%clk 0:00:50]}  bxa5 {[%clk 0:00:50]} 28. bxa5 {[%clk 0:00:51]}  Qc4 {[%clk 0:00:48]} 29. Nf4 {[%clk 0:00:37]}  Qxe2 {[%clk 0:00:47]} 30. Nxe2 {[%clk 0:00:37]}  Nc4 {[%clk 0:00:47]} 31. Nc3 {[%clk 0:00:26]}  Bd8 {[%clk 0:00:45]} 32. Be1 {[%clk 0:00:21]}  Bxa5 {[%clk 0:00:42]} 33. Na4 {[%clk 0:00:22]}  Bd8 {[%clk 0:00:39]} 34. Nd2 {[%clk 0:00:18]}  Nxd2 {[%clk 0:00:31]} 35. Bxd2 {[%clk 0:00:19]}  Bd7 {[%clk 0:00:31]} 36. Nc5 {[%clk 0:00:19]}  Bb5 {[%clk 0:00:32]} 37. e6 {[%clk 0:00:14]}  fxe6 {[%clk 0:00:30]} 38. Nxe6 {[%clk 0:00:15]}  Bb6 {[%clk 0:00:29]} 39. Bc3 {[%clk 0:00:11]}  a5 {[%clk 0:00:29]} 40. h5 {[%clk 0:00:10]}  a4 {[%clk 0:00:29]} 41. Bb4 {[%clk 0:00:10]}  Kg8 {[%clk 0:00:26]} 42. Kf3 {[%clk 0:00:09]}  Kf7 {[%clk 0:00:26]} 43. Nc5 {[%clk 0:00:08]}  Bc7 {[%clk 0:00:23]} 44. Ke3 {[%clk 0:00:07]}  Kf6 {[%clk 0:00:20]} 45. f4 {[%clk 0:00:07]}  Be8 {[%clk 0:00:20]} 46. Kd3 {[%clk 0:00:06]}  Bxh5 {[%clk 0:00:17]} 47. Nxa4 {[%clk 0:00:05]}  Bf3 {[%clk 0:00:17]} 48. Ke3 {[%clk 0:00:05]}  Bd1 {[%clk 0:00:16]} 49. Nc3 {[%clk 0:00:04]}  Bb3 {[%clk 0:00:15]} 50. Nb5 {[%clk 0:00:05]}  Bd8 {[%clk 0:00:15]} 51. Bd6 {[%clk 0:00:05]}  h5 {[%clk 0:00:13]} 52. Be5+ {[%clk 0:00:05]}  Kg6 {[%clk 0:00:13]} 53. Nd6 {[%clk 0:00:05]}  Ba4 {[%clk 0:00:13]} 54. Kf3 {[%clk 0:00:04]}  h4 {[%clk 0:00:12]} 55. gxh4 {[%clk 0:00:04]}  Bxh4 {[%clk 0:00:12]} 56. Nb7 {[%clk 0:00:04]}  Kh5 {[%clk 0:00:11]} 57. Nc5 {[%clk 0:00:04]}  Bd1+ {[%clk 0:00:10]} 58. Ke3 {[%clk 0:00:04]}  g6 {[%clk 0:00:10]} 59. Ne6 {[%clk 0:00:04]}  Kg4 {[%clk 0:00:10]} 60. Bd6 {[%clk 0:00:03]}  Bg3 {[%clk 0:00:08]} 61. Ng5 {[%clk 0:00:02]}  Bh2 {[%clk 0:00:08]} 62. Be5 {[%clk 0:00:02]}  Bg1+ {[%clk 0:00:08]} 63. Kd2 {[%clk 0:00:02]}  Bb3 {[%clk 0:00:08]} 64. Ne6 {[%clk 0:00:03]}  Bc4 {[%clk 0:00:08]} 65. Nf8 {[%clk 0:00:03]}  Kh5 {[%clk 0:00:07]} 66. Ne6 {[%clk 0:00:03]}  Bh2 {[%clk 0:00:07]} 67. Ke3 {[%clk 0:00:04]}  Kg4 {[%clk 0:00:07]} 68. Ng5 {[%clk 0:00:05]}  Bg1+ {[%clk 0:00:07]} 69. Kd2 {[%clk 0:00:05]}  Bb5 {[%clk 0:00:06]} 70. Ne6 {[%clk 0:00:06]}  Bc4 {[%clk 0:00:07]} 71. Nf8 {[%clk 0:00:06]}  g5 {[%clk 0:00:07]} 72. fxg5 {[%clk 0:00:06]}  Kxg5 {[%clk 0:00:08]} 73. Ne6+ {[%clk 0:00:07]}  Kg4 {[%clk 0:00:08]} 74. Nf4 {[%clk 0:00:07]}  Bh2 {[%clk 0:00:08]} 75. Ng6 {[%clk 0:00:07]}  f4 {[%clk 0:00:08]} 76. Ke1 {[%clk 0:00:06]}  Bg3+ {[%clk 0:00:08]} 77. Kd2 {[%clk 0:00:06]}  f3 {[%clk 0:00:09]} 78. Bxg3 {[%clk 0:00:05]}  Kxg3 {[%clk 0:00:09]} 79. Ne7 {[%clk 0:00:04]}  f2 {[%clk 0:00:09]} 80. Nf5+ {[%clk 0:00:05]}  Kf3 {[%clk 0:00:09]} 81. Ne3 {[%clk 0:00:05]}  f1=Q {[%clk 0:00:10]} 82. Nc2 {[%clk 0:00:05]}  Qe2+ {[%clk 0:00:08]} 83. Kc1 {[%clk 0:00:06]}  Qxc2+ {[%clk 0:00:08]} 84. Kxc2 {[%clk 0:00:06]}  Ke3 {[%clk 0:00:08]} 85. Kc3 {[%clk 0:00:00]}  Ke4 {[%clk 0:00:09]} 0-1


[Site "https://www.chess.com"]

[Event "Titled Tuesday Blitz August 22 Early 2023"]
[White "Kashefi, Amir Hosein"]
[Black "Molina, Roberto Junio Brito"]
[WhiteFideId "12557935"]
[BlackFideId "2109450"]
[WhiteElo "2539"]
[BlackElo "2840"]
[Result "1-0"]
[Round "6"]
[TimeControl "180+1"]
[Date "2023.08.22"]
[WhiteClock "0:00:04"]
[BlackClock "0:00:05"]
[Board "61"]

1. d4 {[%clk 0:02:59]}  d5 {[%clk 0:02:59]} 2. Nf3 {[%clk 0:02:58]}  Nf6 {[%clk 0:02:59]} 3. Bf4 {[%clk 0:02:55]}  e6 {[%clk 0:02:59]} 4. e3 {[%clk 0:02:55]}  Bd6 {[%clk 0:02:59]} 5. Bg3 {[%clk 0:02:48]}  Bxg3 {[%clk 0:02:57]} 6. hxg3 {[%clk 0:02:47]}  Qd6 {[%clk 0:02:57]} 7. Nbd2 {[%clk 0:02:45]}  Nbd7 {[%clk 0:02:57]} 8. c4 {[%clk 0:02:37]}  O-O {[%clk 0:02:49]} 9. Qc2 {[%clk 0:02:31]}  c5 {[%clk 0:02:46]} 10. dxc5 {[%clk 0:02:05]}  Nxc5 {[%clk 0:02:44]} 11. b4 {[%clk 0:02:00]}  Ncd7 {[%clk 0:02:42]} 12. c5 {[%clk 0:02:00]}  Qe7 {[%clk 0:02:41]} 13. g4 {[%clk 0:01:59]}  g6 {[%clk 0:02:38]} 14. g5 {[%clk 0:01:56]}  Ne8 {[%clk 0:02:32]} 15. a3 {[%clk 0:01:47]}  a5 {[%clk 0:02:21]} 16. Rb1 {[%clk 0:01:47]}  axb4 {[%clk 0:02:20]} 17. axb4 {[%clk 0:01:47]}  f6 {[%clk 0:02:18]} 18. gxf6 {[%clk 0:01:14]}  Qxf6 {[%clk 0:02:15]} 19. Bb5 {[%clk 0:00:57]}  Nc7 {[%clk 0:02:06]} 20. Bd3 {[%clk 0:00:52]}  Ne5 {[%clk 0:02:02]} 21. Be2 {[%clk 0:00:48]}  Bd7 {[%clk 0:01:50]} 22. Nxe5 {[%clk 0:00:36]}  Qxe5 {[%clk 0:01:48]} 23. Nf3 {[%clk 0:00:34]}  Qf6 {[%clk 0:01:47]} 24. O-O {[%clk 0:00:31]}  e5 {[%clk 0:01:39]} 25. e4 {[%clk 0:00:30]}  dxe4 {[%clk 0:01:26]} 26. Qxe4 {[%clk 0:00:29]}  Bf5 {[%clk 0:01:25]} 27. Qxb7 {[%clk 0:00:20]}  Bxb1 {[%clk 0:01:22]} 28. Rxb1 {[%clk 0:00:21]}  Rfc8 {[%clk 0:01:02]} 29. Bc4+ {[%clk 0:00:21]}  Kh8 {[%clk 0:01:02]} 30. Qe4 {[%clk 0:00:21]}  Rab8 {[%clk 0:00:57]} 31. Qxe5 {[%clk 0:00:20]}  Kg7 {[%clk 0:00:39]} 32. Qxf6+ {[%clk 0:00:12]}  Kxf6 {[%clk 0:00:40]} 33. Nd2 {[%clk 0:00:10]}  Ne6 {[%clk 0:00:34]} 34. Ne4+ {[%clk 0:00:09]}  Ke5 {[%clk 0:00:34]} 35. Re1 {[%clk 0:00:08]}  Nf4 {[%clk 0:00:24]} 36. Nd6+ {[%clk 0:00:08]}  Kd4 {[%clk 0:00:24]} 37. Re4+ {[%clk 0:00:08]}  Kc3 {[%clk 0:00:24]} 38. Nxc8 {[%clk 0:00:08]}  g5 {[%clk 0:00:21]} 39. Nb6 {[%clk 0:00:07]}  Rd8 {[%clk 0:00:18]} 40. Bf1 {[%clk 0:00:04]}  Rd1 {[%clk 0:00:05]} 41. g3 {[%clk 0:00:04]} 1-0


[Site "https://www.chess.com"]

[Event "Titled Tuesday Blitz August 22 Early 2023"]
[White "Dehtiarov, Roman"]
[Black "Boraso, Alessio"]
[WhiteFideId "14186640"]
[BlackFideId "848077"]
[WhiteElo "2690"]
[BlackElo "2526"]
[Result "1-0"]
[Round "6"]
[TimeControl "180+1"]
[Date "2023.08.22"]
[WhiteClock "0:00:18"]
[BlackClock "0:00:02"]
[Board "68"]

1. e4 {[%clk 0:03:00]}  Nf6 {[%clk 0:02:58]} 2. Nc3 {[%clk 0:03:00]}  d5 {[%clk 0:02:55]} 3. e5 {[%clk 0:02:58]}  Nfd7 {[%clk 0:02:55]} 4. d4 {[%clk 0:02:58]}  c5 {[%clk 0:02:53]} 5. e6 {[%clk 0:02:56]}  fxe6 {[%clk 0:02:53]} 6. Nf3 {[%clk 0:02:54]}  Nc6 {[%clk 0:02:53]} 7. Ne2 {[%clk 0:02:36]}  Nf6 {[%clk 0:02:46]} 8. c3 {[%clk 0:02:35]}  g6 {[%clk 0:02:44]} 9. Nf4 {[%clk 0:02:31]}  Bg7 {[%clk 0:02:43]} 10. Bb5 {[%clk 0:02:31]}  O-O {[%clk 0:02:42]} 11. Bxc6 {[%clk 0:02:31]}  bxc6 {[%clk 0:02:43]} 12. Nd3 {[%clk 0:02:31]}  cxd4 {[%clk 0:02:41]} 13. cxd4 {[%clk 0:02:32]}  Ba6 {[%clk 0:02:40]} 14. Nc5 {[%clk 0:02:27]}  Ne4 {[%clk 0:02:13]} 15. Nxe6 {[%clk 0:02:13]}  Qa5+ {[%clk 0:02:12]} 16. Bd2 {[%clk 0:02:13]}  Nxd2 {[%clk 0:02:11]} 17. Qxd2 {[%clk 0:02:14]}  Qxd2+ {[%clk 0:02:09]} 18. Kxd2 {[%clk 0:02:15]}  Bh6+ {[%clk 0:02:04]} 19. Kc3 {[%clk 0:01:57]}  Rfc8 {[%clk 0:02:00]} 20. Rhe1 {[%clk 0:01:55]}  Rab8 {[%clk 0:01:51]} 21. Nc5 {[%clk 0:01:48]}  Rb6 {[%clk 0:01:12]} 22. Rxe7 {[%clk 0:01:43]}  Rcb8 {[%clk 0:01:09]} 23. b3 {[%clk 0:01:40]}  Bf8 {[%clk 0:01:00]} 24. Rxa7 {[%clk 0:01:32]}  Bc8 {[%clk 0:00:55]} 25. Re1 {[%clk 0:01:26]}  Rb5 {[%clk 0:00:41]} 26. Re8 {[%clk 0:01:08]}  Bf5 {[%clk 0:00:25]} 27. Rxb8 {[%clk 0:00:51]}  Rxb8 {[%clk 0:00:26]} 28. Ne5 {[%clk 0:00:49]}  Re8 {[%clk 0:00:26]} 29. f4 {[%clk 0:00:37]}  g5 {[%clk 0:00:25]} 30. g3 {[%clk 0:00:20]}  gxf4 {[%clk 0:00:26]} 31. gxf4 {[%clk 0:00:21]}  Bh6 {[%clk 0:00:26]} 32. Ncd3 {[%clk 0:00:09]}  Bxd3 {[%clk 0:00:08]} 33. Nxd3 {[%clk 0:00:10]}  Re3 {[%clk 0:00:08]} 34. Kd2 {[%clk 0:00:07]}  Re4 {[%clk 0:00:07]} 35. Kc3 {[%clk 0:00:07]}  Bg7 {[%clk 0:00:08]} 36. Ra8+ {[%clk 0:00:06]}  Kf7 {[%clk 0:00:08]} 37. Ra7+ {[%clk 0:00:06]}  Kg6 {[%clk 0:00:07]} 38. Rxg7+ {[%clk 0:00:07]}  Kxg7 {[%clk 0:00:07]} 39. a4 {[%clk 0:00:08]}  Kf6 {[%clk 0:00:03]} 40. a5 {[%clk 0:00:08]}  Re8 {[%clk 0:00:04]} 41. a6 {[%clk 0:00:08]}  Ke6 {[%clk 0:00:03]} 42. Ne5 {[%clk 0:00:05]}  Kd6 {[%clk 0:00:02]} 43. Nd3 {[%clk 0:00:05]}  Ra8 {[%clk 0:00:02]} 44. Nc5 {[%clk 0:00:06]}  Rf8 {[%clk 0:00:03]} 45. Na4 {[%clk 0:00:04]}  Kc7 {[%clk 0:00:03]} 46. Nc5 {[%clk 0:00:04]}  Rxf4 {[%clk 0:00:01]} 47. Ne6+ {[%clk 0:00:04]}  Kb6 {[%clk 0:00:01]} 48. Nxf4 {[%clk 0:00:05]}  Kxa6 {[%clk 0:00:02]} 49. Ne6 {[%clk 0:00:06]}  Kb5 {[%clk 0:00:02]} 50. Nc5 {[%clk 0:00:06]}  Kb6 {[%clk 0:00:03]} 51. Kd3 {[%clk 0:00:07]}  Kb5 {[%clk 0:00:03]} 52. Ke3 {[%clk 0:00:08]}  Kb4 {[%clk 0:00:03]} 53. Kf4 {[%clk 0:00:09]}  Kc3 {[%clk 0:00:04]} 54. Ke5 {[%clk 0:00:10]}  h5 {[%clk 0:00:03]} 55. Ne6 {[%clk 0:00:10]}  h4 {[%clk 0:00:03]} 56. Nd8 {[%clk 0:00:10]}  c5 {[%clk 0:00:03]} 57. dxc5 {[%clk 0:00:10]}  d4 {[%clk 0:00:04]} 58. c6 {[%clk 0:00:09]}  d3 {[%clk 0:00:05]} 59. c7 {[%clk 0:00:10]}  d2 {[%clk 0:00:06]} 60. c8=Q+ {[%clk 0:00:11]}  Kb2 {[%clk 0:00:04]} 61. Qd7 {[%clk 0:00:12]}  Kc2 {[%clk 0:00:03]} 62. Qxd2+ {[%clk 0:00:12]}  Kxd2 {[%clk 0:00:04]} 63. Kf4 {[%clk 0:00:13]}  Kc3 {[%clk 0:00:03]} 64. Kg4 {[%clk 0:00:14]}  Kxb3 {[%clk 0:00:04]} 65. Kxh4 {[%clk 0:00:15]}  Kc4 {[%clk 0:00:05]} 66. Kg5 {[%clk 0:00:16]}  Kd5 {[%clk 0:00:05]} 67. h4 {[%clk 0:00:17]}  Kd6 {[%clk 0:00:04]} 68. Kg6 {[%clk 0:00:18]}  Ke7 {[%clk 0:00:02]} 69. Kg7 {[%clk 0:00:18]} 1-0


[Site "https://www.chess.com"]